fUSD/lending_fUSD_20240728
["ID","MTS","AMOUNT","RATE_DAILY","PERIOD"]
[333432650,1722125457858,-500.0,0.00010999,2]
[333432651,1722125457869,-777.08,0.00010999,2]
[333432652,1722125457880,-500.0,0.00010999,2]
[333432653,1722125457891,-500.0,0.00010999,2]
[333432654,1722125457902,-500.0,0.00010999,2]
[333432655,1722125457913,-500.0,0.00010999,2]
[333432656,1722125457925,-500.0,0.00010999,2]
[333432657,1722125457936,-500.0,0.00010999,2]
[333432658,1722125457947,-500.0,0.00010999,2]
[333432659,1722125457957,-500.0,0.00010999,2]
[333432660,1722125457968,-500.0,0.00010999,2]
[333432661,1722125457979,-500.0,0.00010999,2]
[333432662,1722125457990,-507.07,0.00010999,2]
[333432663,1722125458001,-806.9,0.00010999,2]
[333432664,1722125458011,-500.0,0.00010999,2]
[333432665,1722125458022,-500.0,0.00010999,2]
[333432666,1722125458033,-500.0,0.00010999,2]
[333432667,1722125458044,-500.0,0.00010999,2]
[333432668,1722125458055,-341.64,0.00010999,2]
[333432669,1722125458067,-500.0,0.00010999,2]
[333432670,1722125458078,-500.0,0.00010999,2]
[333432671,1722125458089,-500.0,0.00010999,2]
[333432672,1722125458100,-500.0,0.00010999,2]
[333432673,1722125458112,-265.33,0.00010999,2]
[333432674,1722125458125,-500.0,0.00010999,2]
[333432675,1722125458136,-500.0,0.00010999,2]
[333432676,1722125458377,-500.0,0.00010999,2]
[333432677,1722125458389,-500.0,0.00010999,2]
[333432678,1722125458398,-500.0,0.00010999,2]
[333432679,1722125458407,-500.0,0.00010999,2]
[333432680,1722125458416,-500.0,0.00010999,2]
[333432681,1722125458425,-233.12,0.00010999,2]
[333432682,1722125458434,-500.0,0.00010999,2]
[333432683,1722125458443,-500.0,0.00010999,2]
[333432684,1722125458452,-500.0,0.00010999,2]
[333432685,1722125458461,-500.0,0.00010999,2]
[333432686,1722125458470,-520.06,0.00010999,2]
[333432687,1722125458479,-500.0,0.00010999,2]
[333432688,1722125458488,-500.0,0.00010999,2]
[333432689,1722125458497,-500.0,0.00010999,2]
[333432690,1722125458507,-500.0,0.00010999,2]
[333432691,1722125458515,-500.0,0.00010999,2]
[333432692,1722125458525,-500.0,0.00010999,2]
[333432693,1722125458534,-500.0,0.00010999,2]
[333432694,1722125458543,-500.0,0.00010999,2]
[333432695,1722125458552,-500.0,0.00010999,2]
[333432696,1722125458562,-500.0,0.00010999,2]
[333432697,1722125458571,-614.78,0.00010999,2]
[333432698,1722125458581,-500.0,0.00010999,2]
[333432699,1722125458591,-500.0,0.00010999,2]
[333432700,1722125458601,-500.0,0.00010999,2]
[333432701,1722125458611,-500.0,0.00010999,2]
[333432702,1722125458621,-500.0,0.00010999,2]
[333432703,1722125458631,-500.0,0.00010999,2]
[333432704,1722125458641,-500.0,0.00010999,2]
[333432705,1722125458652,-561.8,0.00010999,2]
[333432706,1722125458661,-500.0,0.00010999,2]
[333432707,1722125458672,-500.0,0.00010999,2]
[333432708,1722125458681,-500.0,0.00010999,2]
[333432709,1722125458691,-500.0,0.00010999,2]
[333432710,1722125458700,-500.0,0.00010999,2]
[333432711,1722125458710,-500.0,0.00010999,2]
[333432712,1722125458719,-500.0,0.00010999,2]
[333432713,1722125458730,-500.0,0.00010999,2]
[333432714,1722125458740,-500.0,0.00010999,2]
[333432715,1722125458749,-500.0,0.00010999,2]
[333432716,1722125458759,-500.0,0.00010999,2]
[333432717,1722125458769,-500.0,0.00010999,2]
[333432718,1722125458778,-500.0,0.00010999,2]
[333432719,1722125458787,-500.0,0.00010999,2]
[333432720,1722125458797,-500.0,0.00010999,2]
[333432721,1722125458806,-500.0,0.00010999,2]
[333432722,1722125458816,-500.0,0.00010999,2]
[333432723,1722125458826,-500.0,0.00010999,2]
[333432724,1722125458835,-500.0,0.00010999,2]
[333432725,1722125458844,-568.89,0.00010999,2]
[333432726,1722125458854,-608.0,0.00011,2]
[333432727,1722125458863,-188210.54472223,0.00011,2]
[333432728,1722125458872,-1756688.09409369,0.00011,2]
[333432729,1722125459147,-500.0,0.00010958,2]
[333432730,1722125459158,-567.08377648,0.00011,2]
[333432731,1722125459471,-500.0,0.00010958,2]
[333432732,1722125459481,-500.0,0.00010958,2]
[333432733,1722125459490,-500.0,0.00010958,2]
[333432734,1722125459499,-196.46,0.00010958,2]
[333432735,1722125459508,-500.0,0.00010958,2]
[333432736,1722125459517,-500.0,0.00010958,2]
[333432737,1722125459530,-500.0,0.00010987,2]
[333432738,1722125459539,-500.0,0.00010987,2]
[333432739,1722125459548,-500.0,0.00010987,2]
[333432740,1722125459558,-500.0,0.00010999,2]
[333432741,1722125459567,-500.0,0.00010999,2]
[333432742,1722125459576,-500.0,0.00010999,2]
[333432743,1722125459586,-500.0,0.00010999,2]
[333432744,1722125459595,-338234.49548002,0.00011,2]
[333432745,1722125459607,-922.42628103,0.00011,2]
[333432746,1722125490795,150.0,0.00018953,120]
[333432747,1722125550900,150.0,0.00019113,120]
[333432761,1722126210844,150.0,0.00019488,120]
[333432802,1722126631583,-941.05,8.219e-05,2]
[333432803,1722126631593,-265.25,9.768e-05,2]
[333432804,1722126631604,-250.0,9.778e-05,2]
[333432805,1722126631614,-1000.0,9.781e-05,2]
[333432806,1722126631625,-498.14,9.793e-05,2]
[333432807,1722126631636,-236.4754925,9.794e-05,2]
[333432808,1722126631648,-1360.59576,9.794e-05,2]
[333432809,1722126631659,-654.15090965,9.794e-05,2]
[333432810,1722126631683,-471.59783785,9.794e-05,2]
[333432811,1722126631692,-168.78,9.807e-05,2]
[333432812,1722126631703,-577.21,9.824e-05,2]
[333432813,1722126631713,-1977.0,0.0001,2]
[333432814,1722126631722,-300.0,0.00010099,2]
[333432815,1722126631732,-244.60519568,0.000101,2]
[333432816,1722126631743,-852.31,0.000101,2]
[333432821,1722126631966,-150.0,0.00010191,2]
[333432822,1722126631976,-150.0,0.00010192,2]
[333432823,1722126631986,-11193.455841,0.00010192,2]
[333432824,1722126632005,-4166.60736586,0.00010192,2]
[333432825,1722126632016,-4645.50746471,0.00010192,2]
[333432828,1722126637893,-465.0766574,0.00010192,2]
[333432829,1722126637905,-294.14390776,0.00010192,2]
[333432830,1722126637925,-1888.62876327,0.00010192,2]
[333432831,1722126637935,-119.24934268,0.00010241,2]
[333432832,1722126637997,-351.15065732,0.00010241,2]
[333432833,1722126638007,-941.05,0.00010465,2]
[333432834,1722126638017,-150.0,0.00010726,2]
[333432835,1722126638026,-150.0,0.00010726,2]
[333432836,1722126638036,-150.0,0.00010728,2]
[333432837,1722126638045,-150.0,0.0001073,2]
[333432838,1722126638055,-150.0,0.00010731,2]
[333432839,1722126638067,-150.0,0.0001074,2]
[333432840,1722126638076,-150.0,0.0001074,2]
[333432841,1722126638086,-150.0,0.00010744,2]
[333432842,1722126638096,-150.0,0.00010745,2]
[333432843,1722126638105,-152.09,0.00010746,2]
[333432844,1722126638115,-150.99,0.00010746,2]
[333432845,1722126638124,-150.0,0.00010748,2]
[333432846,1722126638134,-150.0,0.00010749,2]
[333432847,1722126638143,-4297.87934268,0.00010758,2]
[333432848,1722126638155,-3202.12065732,0.00010758,2]
[333432849,1722126638165,-966.9596,0.00010758,2]
[333432850,1722126638175,-150.0,0.00010759,2]
[333432851,1722126638184,-150.0,0.00010759,2]
[333432852,1722126638194,-150.0,0.00010765,2]
[333432853,1722126638203,-150.0,0.00010765,2]
[333432854,1722126638212,-150.0,0.00010765,2]
[333432855,1722126638222,-150.0,0.00010765,2]
[333432856,1722126638232,-150.0,0.00010768,2]
[333432857,1722126638241,-150.0,0.0001077,2]
[333432858,1722126638251,-150.0,0.00010772,2]
[333432859,1722126638260,-150.0,0.00010772,2]
[333432860,1722126638269,-150.0,0.00010774,2]
[333432861,1722126638279,-150.0,0.00010774,2]
[333432862,1722126638288,-150.0,0.00010782,2]
[333432863,1722126638298,-189.79358224,0.00010784,2]
[333432864,1722126638307,-150.0,0.00010788,2]
[333432865,1722126638319,-150.0,0.0001079,2]
[333432866,1722126638328,-150.0,0.0001079,2]
[333432867,1722126638338,-150.0,0.00010793,2]
[333432868,1722126638348,-150.0,0.00010793,2]
[333432869,1722126638357,-150.0,0.00010793,2]
[333432870,1722126638366,-150.0,0.00010793,2]
[333432871,1722126638376,-150.0,0.00010793,2]
[333432872,1722126638385,-150.0,0.00010806,2]
[333432873,1722126638394,-150.0,0.00010809,2]
[333432874,1722126638404,-150.0,0.0001081,2]
[333432875,1722126638413,-150.0,0.00010812,2]
[333432876,1722126638422,-150.0,0.00010813,2]
[333432877,1722126638432,-150.0,0.00010814,2]
[333432878,1722126638442,-150.0,0.00010818,2]
[333432879,1722126638452,-150.0,0.00010822,2]
[333432880,1722126638461,-1472.41,0.00010822,2]
[333432881,1722126638472,-150.0,0.00010823,2]
[333432882,1722126638481,-150.0,0.00010826,2]
[333432883,1722126638490,-150.0,0.00010827,2]
[333432884,1722126638500,-150.0,0.00010828,2]
[333432885,1722126638509,-150.0,0.00010829,2]
[333432886,1722126638519,-150.0,0.00010832,2]
[333432887,1722126638528,-150.0,0.00010833,2]
[333432888,1722126638538,-150.0,0.00010841,2]
[333432889,1722126638547,-150.0,0.00010845,2]
[333432890,1722126638557,-1472.41,0.00010848,2]
[333432891,1722126638568,-1472.41,0.00010848,2]
[333432892,1722126638578,-1472.41,0.00010848,2]
[333432893,1722126638588,-1472.41,0.00010848,2]
[333432894,1722126638597,-1472.41,0.00010848,2]
[333432895,1722126638607,-1472.41,0.00010848,2]
[333432896,1722126638616,-1472.41,0.00010848,2]
[333432897,1722126638626,-1472.41,0.00010848,2]
[333432898,1722126638638,-1472.41,0.00010848,2]
[333432899,1722126638648,-403.0,0.00010849,2]
[333432900,1722126638657,-150.0,0.00010849,2]
[333432901,1722126638666,-150.0,0.00010851,2]
[333432902,1722126638676,-150.0,0.00010854,2]
[333432903,1722126638685,-150.0,0.00010856,2]
[333432904,1722126638694,-2463.40030278,0.00010858,2]
[333432907,1722126639549,-150.0,0.0001072,2]
[333432908,1722126639558,-150.0,0.00010723,2]
[333432909,1722126639569,-150.0,0.00010725,2]
[333432910,1722126639578,-150.0,0.00010731,2]
[333432911,1722126639587,-150.0,0.00010735,2]
[333432912,1722126639598,-150.0,0.00010738,2]
[333432913,1722126639607,-150.0,0.00010748,2]
[333432914,1722126639616,-150.0,0.00010748,2]
[333432915,1722126639626,-150.0,0.00010762,2]
[333432916,1722126639640,-150.0,0.0001077,2]
[333432917,1722126639650,-150.0,0.00010773,2]
[333432918,1722126639660,-150.0,0.00010774,2]
[333432919,1722126639671,-150.0,0.00010776,2]
[333432920,1722126639681,-150.0,0.00010789,2]
[333432921,1722126639692,-150.0,0.0001079,2]
[333432922,1722126639702,-150.0,0.00010793,2]
[333432923,1722126639714,-150.0,0.00010809,2]
[333432924,1722126639724,-150.0,0.0001082,2]
[333432925,1722126639734,-150.0,0.00010821,2]
[333432926,1722126639745,-150.0,0.00010825,2]
[333432927,1722126639755,-150.0,0.00010835,2]
[333432928,1722126639766,-150.0,0.00010839,2]
[333432929,1722126639775,-150.0,0.00010839,2]
[333432930,1722126639786,-150.0,0.00010843,2]
[333432931,1722126639795,-150.0,0.00010853,2]
[333432932,1722126639806,-150.0,0.00010854,2]
[333432933,1722126639818,-150.0,0.00010858,2]
[333432934,1722126639828,-237466.17809722,0.00010858,2]
[333432935,1722126639838,-3000.0,0.00010858,2]
[333432936,1722126639847,-39569.4671,0.00010858,2]
[333432937,1722126639858,-150.0,0.0001086,2]
[333432938,1722126639868,-150.0,0.00010865,2]
[333432940,1722126639877,-150.0,0.00010866,2]
[333432942,1722126639886,-150.0,0.00010867,2]
[333432944,1722126639896,-150.0,0.00010873,2]
[333432946,1722126639905,-150.0,0.00010875,2]
[333432948,1722126639915,-150.0,0.00010877,2]
[333432949,1722126639924,-300.0,0.00010877,2]
[333432951,1722126639934,-150.0,0.00010877,2]
[333432953,1722126639944,-150.0,0.0001088,2]
[333432955,1722126639953,-150.0,0.0001088,2]
[333432957,1722126639963,-150.0,0.0001088,2]
[333432959,1722126639972,-162227.03596863,0.0001088,2]
[333432961,1722126639982,-150.0,0.00010881,2]
[333432962,1722126639992,-150.0,0.00010884,2]
[333432963,1722126640002,-150.0,0.00010885,2]
[333432964,1722126640011,-150.0,0.00010886,2]
[333432965,1722126640021,-150.0,0.00010886,2]
[333432966,1722126640031,-150.0,0.00010886,2]
[333432967,1722126640041,-189.79358224,0.00010887,2]
[333432968,1722126640050,-150.0,0.00010889,2]
[333432969,1722126640060,-150.0,0.0001089,2]
[333432970,1722126640075,-150.0,0.0001089,2]
[333432971,1722126640084,-150.0,0.0001089,2]
[333432972,1722126640094,-150.0,0.0001089,2]
[333432973,1722126640106,-300.0,0.0001089,2]
[333432974,1722126640116,-150.0,0.0001089,2]
[333432975,1722126640126,-150.0,0.00010891,2]
[333432976,1722126640137,-150.0,0.00010894,2]
[333432977,1722126640147,-150.0,0.00010894,2]
[333432978,1722126640157,-150.0,0.00010896,2]
[333432979,1722126640167,-150.0,0.00010897,2]
[333432980,1722126640176,-150.0,0.00010897,2]
[333432981,1722126640186,-150.0,0.00010898,2]
[333432982,1722126640195,-150.0,0.00010898,2]
[333432983,1722126640205,-1292.99345972,0.00010898,2]
[333432984,1722126640215,-165.71762376,0.00010899,2]
[333432985,1722126640224,-165.71762376,0.00010899,2]
[333432986,1722126640234,-165.71762376,0.00010899,2]
[333432987,1722126640244,-165.71762376,0.00010899,2]
[333432988,1722126640253,-150.5744302,0.00010899,2]
[333432989,1722126640262,-150.57443019,0.000109,2]
[333432990,1722126640271,-165.71762376,0.000109,2]
[333432991,1722126640280,-150.57443019,0.000109,2]
[333432992,1722126640291,-153.84,0.000109,2]
[333432993,1722126640301,-150.0,0.00010901,2]
[333432994,1722126640311,-150.0,0.00010902,2]
[333432995,1722126640325,-150.0,0.00010906,2]
[333432996,1722126640334,-150.0,0.00010908,2]
[333432997,1722126640344,-150.0,0.00010909,2]
[333432998,1722126640353,-150.0,0.0001091,2]
[333432999,1722126640363,-150.0,0.0001091,2]
[333433000,1722126640372,-500.0,0.00010912,2]
[333433001,1722126640383,-150.0,0.00010915,2]
[333433002,1722126640393,-150.0,0.00010916,2]
[333433003,1722126640403,-150.0,0.00010922,2]
[333433004,1722126640413,-150.0,0.00010923,2]
[333433005,1722126640422,-150.0,0.00010923,2]
[333433006,1722126640431,-150.0,0.00010932,2]
[333433007,1722126640440,-150.0,0.00010936,2]
[333433008,1722126640450,-150.0,0.00010938,2]
[333433009,1722126640459,-150.0,0.00010944,2]
[333433010,1722126640468,-150.0,0.00010944,2]
[333433011,1722126640477,-536.9428,0.00010945,2]
[333433012,1722126640487,-150.0,0.00010951,2]
[333433013,1722126640496,-150.0,0.00010953,2]
[333433014,1722126640505,-150.0,0.00010955,2]
[333433015,1722126640515,-150.0,0.00010957,2]
[333433016,1722126640524,-594.0,0.00010958,2]
[333433017,1722126640533,-500.0,0.00010958,2]
[333433018,1722126640542,-500.0,0.00010958,2]
[333433019,1722126640552,-500.0,0.00010958,2]
[333433020,1722126640561,-500.0,0.00010958,2]
[333433021,1722126640574,-500.0,0.00010958,2]
[333433022,1722126640583,-151.66,0.00010958,2]
[333433023,1722126640592,-500.0,0.00010958,2]
[333433024,1722126640602,-500.0,0.00010958,2]
[333433025,1722126640611,-500.0,0.00010958,2]
[333433026,1722126640619,-500.0,0.00010958,2]
[333433027,1722126640633,-500.0,0.00010958,2]
[333433028,1722126640644,-500.0,0.00010958,2]
[333433029,1722126640653,-500.0,0.00010958,2]
[333433030,1722126640662,-500.0,0.00010958,2]
[333433031,1722126640671,-500.0,0.00010958,2]
[333433032,1722126640680,-500.0,0.00010958,2]
[333433033,1722126640689,-500.0,0.00010958,2]
[333433034,1722126640698,-500.0,0.00010958,2]
[333433035,1722126640707,-500.0,0.00010958,2]
[333433036,1722126640718,-500.0,0.00010958,2]
[333433037,1722126640727,-500.0,0.00010958,2]
[333433038,1722126640736,-500.0,0.00010958,2]
[333433039,1722126640745,-500.0,0.00010958,2]
[333433040,1722126640755,-500.0,0.00010958,2]
[333433041,1722126640764,-500.0,0.00010958,2]
[333433042,1722126640911,-500.0,0.00010958,2]
[333433043,1722126640952,-257.32,0.00010958,2]
[333433044,1722126640962,-500.0,0.00010958,2]
[333433045,1722126640971,-500.0,0.00010958,2]
[333433046,1722126640981,-624.21,0.00010958,2]
[333433047,1722126640990,-500.0,0.00010958,2]
[333433048,1722126640999,-500.0,0.00010958,2]
[333433049,1722126641008,-500.0,0.00010958,2]
[333433050,1722126641018,-500.0,0.00010958,2]
[333433051,1722126641027,-500.0,0.00010958,2]
[333433052,1722126641036,-500.0,0.00010958,2]
[333433053,1722126641046,-500.0,0.00010958,2]
[333433054,1722126641055,-500.0,0.00010958,2]
[333433055,1722126641065,-500.0,0.00010958,2]
[333433056,1722126641078,-500.0,0.00010958,2]
[333433057,1722126641087,-500.0,0.00010958,2]
[333433058,1722126641098,-500.0,0.00010958,2]
[333433059,1722126641107,-500.0,0.00010958,2]
[333433060,1722126641116,-500.0,0.00010958,2]
[333433061,1722126641126,-500.0,0.00010958,2]
[333433062,1722126641135,-639.76,0.00010958,2]
[333433063,1722126641145,-500.0,0.00010958,2]
[333433064,1722126641155,-500.0,0.00010958,2]
[333433065,1722126641164,-500.0,0.00010958,2]
[333433066,1722126641174,-500.0,0.00010958,2]
[333433067,1722126641183,-500.0,0.00010958,2]
[333433068,1722126641192,-510.43460812,0.00010958,2]
[333433069,1722126641201,-500.0,0.00010958,2]
[333433070,1722126641210,-641.24,0.00010958,2]
[333433071,1722126641219,-500.0,0.00010958,2]
[333433072,1722126641229,-500.0,0.00010958,2]
[333433073,1722126641238,-500.0,0.00010958,2]
[333433074,1722126641247,-500.0,0.00010958,2]
[333433075,1722126641257,-500.0,0.00010958,2]
[333433076,1722126641265,-500.0,0.00010958,2]
[333433077,1722126641274,-500.0,0.00010958,2]
[333433078,1722126641283,-500.0,0.00010958,2]
[333433079,1722126641293,-500.0,0.00010958,2]
[333433080,1722126641302,-500.0,0.00010958,2]
[333433081,1722126641311,-500.0,0.00010958,2]
[333433082,1722126641323,-461.0,0.00010958,2]
[333433083,1722126641333,-500.0,0.00010958,2]
[333433084,1722126641342,-500.0,0.00010958,2]
[333433085,1722126641351,-500.0,0.00010958,2]
[333433086,1722126641360,-500.0,0.00010958,2]
[333433087,1722126641369,-500.0,0.00010958,2]
[333433088,1722126641379,-500.0,0.00010958,2]
[333433089,1722126641387,-500.0,0.00010958,2]
[333433090,1722126641396,-500.0,0.00010958,2]
[333433091,1722126641405,-500.0,0.00010958,2]
[333433092,1722126641414,-500.0,0.00010958,2]
[333433093,1722126641423,-500.0,0.00010958,2]
[333433094,1722126641432,-500.0,0.00010958,2]
[333433095,1722126641441,-500.0,0.00010958,2]
[333433096,1722126641451,-500.0,0.00010958,2]
[333433097,1722126641460,-500.0,0.00010958,2]
[333433098,1722126641469,-500.0,0.00010958,2]
[333433099,1722126641479,-500.0,0.00010958,2]
[333433100,1722126641488,-500.0,0.00010958,2]
[333433101,1722126641497,-500.0,0.00010958,2]
[333433102,1722126641505,-500.0,0.00010958,2]
[333433103,1722126641515,-500.0,0.00010958,2]
[333433104,1722126641524,-500.0,0.00010958,2]
[333433105,1722126641533,-500.0,0.00010958,2]
[333433106,1722126641542,-500.0,0.00010958,2]
[333433107,1722126641551,-500.0,0.00010958,2]
[333433108,1722126641560,-500.0,0.00010958,2]
[333433109,1722126641572,-500.0,0.00010958,2]
[333433110,1722126641581,-500.0,0.00010958,2]
[333433111,1722126641590,-500.0,0.00010958,2]
[333433112,1722126641599,-500.0,0.00010958,2]
[333433113,1722126641609,-500.0,0.00010958,2]
[333433114,1722126641618,-500.0,0.00010958,2]
[333433115,1722126641627,-500.0,0.00010958,2]
[333433116,1722126641641,-500.0,0.00010958,2]
[333433117,1722126641650,-500.0,0.00010958,2]
[333433118,1722126641660,-500.0,0.00010958,2]
[333433119,1722126641670,-500.0,0.00010958,2]
[333433120,1722126641679,-500.0,0.00010958,2]
[333433121,1722126641688,-500.0,0.00010958,2]
[333433122,1722126641698,-500.0,0.00010958,2]
[333433123,1722126641707,-500.0,0.00010958,2]
[333433124,1722126641719,-500.0,0.00010958,2]
[333433125,1722126641728,-457.26,0.00010958,2]
[333433126,1722126641738,-500.0,0.00010958,2]
[333433127,1722126641747,-500.0,0.00010958,2]
[333433128,1722126641757,-500.0,0.00010958,2]
[333433129,1722126641766,-500.0,0.00010958,2]
[333433130,1722126641776,-500.0,0.00010958,2]
[333433131,1722126641785,-500.0,0.00010958,2]
[333433132,1722126641794,-500.0,0.00010958,2]
[333433133,1722126641803,-500.0,0.00010958,2]
[333433134,1722126641813,-500.0,0.00010958,2]
[333433135,1722126641825,-500.0,0.00010958,2]
[333433136,1722126641834,-500.0,0.00010958,2]
[333433137,1722126641843,-500.0,0.00010958,2]
[333433138,1722126641852,-500.0,0.00010958,2]
[333433139,1722126641862,-500.0,0.00010958,2]
[333433140,1722126641871,-500.0,0.00010958,2]
[333433141,1722126641880,-500.0,0.00010958,2]
[333433142,1722126641890,-500.0,0.00010958,2]
[333433143,1722126641899,-500.0,0.00010958,2]
[333433144,1722126641908,-500.0,0.00010958,2]
[333433145,1722126641919,-500.0,0.00010958,2]
[333433146,1722126641929,-500.0,0.00010958,2]
[333433147,1722126641939,-500.0,0.00010958,2]
[333433148,1722126641948,-500.0,0.00010958,2]
[333433149,1722126641958,-500.0,0.00010958,2]
[333433150,1722126641967,-500.0,0.00010958,2]
[333433151,1722126641977,-500.0,0.00010958,2]
[333433152,1722126641986,-500.0,0.00010958,2]
[333433153,1722126641996,-500.0,0.00010958,2]
[333433154,1722126642006,-500.0,0.00010958,2]
[333433155,1722126642016,-500.0,0.00010958,2]
[333433156,1722126642025,-500.0,0.00010958,2]
[333433157,1722126642035,-500.0,0.00010958,2]
[333433158,1722126642044,-500.0,0.00010958,2]
[333433159,1722126642054,-500.0,0.00010958,2]
[333433160,1722126642063,-500.0,0.00010958,2]
[333433161,1722126642076,-500.0,0.00010958,2]
[333433162,1722126642086,-500.0,0.00010958,2]
[333433163,1722126642095,-500.0,0.00010958,2]
[333433164,1722126642105,-500.0,0.00010958,2]
[333433165,1722126642115,-500.0,0.00010958,2]
[333433166,1722126642125,-500.0,0.00010958,2]
[333433167,1722126642135,-500.0,0.00010958,2]
[333433168,1722126642145,-500.0,0.00010958,2]
[333433169,1722126642154,-500.0,0.00010958,2]
[333433170,1722126642164,-500.0,0.00010958,2]
[333433171,1722126642173,-500.0,0.00010958,2]
[333433172,1722126642183,-500.0,0.00010958,2]
[333433173,1722126642193,-500.0,0.00010958,2]
[333433174,1722126642202,-500.0,0.00010958,2]
[333433175,1722126642211,-438.09,0.00010958,2]
[333433176,1722126642221,-500.0,0.00010958,2]
[333433177,1722126642231,-500.0,0.00010958,2]
[333433178,1722126642240,-500.0,0.00010958,2]
[333433179,1722126642250,-500.0,0.00010958,2]
[333433180,1722126642259,-157.05,0.00010958,2]
[333433181,1722126642268,-500.0,0.00010958,2]
[333433183,1722126642277,-500.0,0.00010958,2]
[333433184,1722126642286,-500.0,0.00010958,2]
[333433186,1722126642296,-500.0,0.00010958,2]
[333433187,1722126642305,-448.08,0.00010958,2]
[333433188,1722126642314,-500.0,0.00010958,2]
[333433189,1722126642326,-500.0,0.00010958,2]
[333433190,1722126642335,-169.54,0.00010958,2]
[333433192,1722126642344,-500.0,0.00010958,2]
[333433194,1722126642353,-500.0,0.00010958,2]
[333433195,1722126642362,-500.0,0.00010958,2]
[333433196,1722126642372,-500.0,0.00010958,2]
[333433198,1722126642381,-500.0,0.00010958,2]
[333433200,1722126642390,-500.0,0.00010958,2]
[333433202,1722126642399,-500.0,0.00010958,2]
[333433204,1722126642408,-500.0,0.00010958,2]
[333433205,1722126642417,-500.0,0.00010958,2]
[333433207,1722126642426,-500.0,0.00010958,2]
[333433209,1722126642436,-500.0,0.00010958,2]
[333433210,1722126642445,-500.0,0.00010958,2]
[333433212,1722126642454,-500.0,0.00010958,2]
[333433213,1722126642463,-617.97,0.00010958,2]
[333433215,1722126642473,-500.0,0.00010958,2]
[333433216,1722126642482,-500.0,0.00010958,2]
[333433217,1722126642491,-500.0,0.00010958,2]
[333433219,1722126642500,-500.0,0.00010958,2]
[333433220,1722126642509,-500.0,0.00010958,2]
[333433221,1722126642518,-500.0,0.00010958,2]
[333433222,1722126642527,-500.0,0.00010958,2]
[333433223,1722126642536,-518.05,0.00010958,2]
[333433224,1722126642545,-500.0,0.00010958,2]
[333433225,1722126642554,-518.05,0.00010958,2]
[333433226,1722126642563,-500.0,0.00010958,2]
[333433227,1722126642576,-500.0,0.00010958,2]
[333433228,1722126642586,-500.0,0.00010958,2]
[333433229,1722126642596,-518.05,0.00010958,2]
[333433230,1722126642605,-518.05,0.00010958,2]
[333433231,1722126642615,-500.0,0.00010958,2]
[333433232,1722126642624,-518.05,0.00010958,2]
[333433233,1722126642635,-500.0,0.00010958,2]
[333433234,1722126642644,-518.05,0.00010958,2]